fUSD/lending_fUSD_20251026
["ID","MTS","AMOUNT","RATE_DAILY","PERIOD"]
[392439019,1761475863969,-500.0,0.00036986,9]
[392439020,1761475863978,-162.92736138,0.00037,2]
[392439021,1761475863988,-476.61195222,0.00037,120]
[392439022,1761475863997,-937.2185552,0.00037,120]
[392439023,1761475864007,-500.0,0.00037011,30]
[392439024,1761475864016,-507.15181486,0.0003708,2]
[392439025,1761475864026,-1023.8,0.00037105,2]
[392439026,1761475864035,-175.54,0.00037156,2]
[392439027,1761475864048,-169.93632099,0.000372,120]
[392439028,1761475864057,-169.93632099,0.000372,120]
[392439029,1761475864067,-169.93632099,0.000372,120]
[392439030,1761475864077,-169.93632099,0.000372,120]
[392439031,1761475864089,-169.93632099,0.000372,120]
[392439032,1761475864099,-186.0,0.00037221,120]
[392439033,1761475864109,-1511.9,0.0003726,2]
[392439034,1761475864119,-500.0,0.0003726,9]
[392439035,1761475864128,-478.20312822,0.0003726,9]
[392439036,1761475864138,-500.0,0.0003726,2]
[392439037,1761475864147,-500.0,0.0003726,9]
[392439038,1761475864156,-500.0,0.0003726,9]
[392439039,1761475864166,-500.0,0.0003726,9]
[392439040,1761475864176,-500.0,0.0003726,9]
[392439041,1761475864185,-500.0,0.0003726,9]
[392439042,1761475864194,-500.0,0.0003726,9]
[392439043,1761475864203,-500.0,0.0003726,9]
[392439044,1761475864212,-500.0,0.0003726,9]
[392439045,1761475864221,-500.0,0.0003726,9]
[392439046,1761475864231,-500.0,0.0003726,9]
[392439047,1761475864240,-500.0,0.0003726,9]
[392439048,1761475864249,-500.0,0.0003726,9]
[392439049,1761475864259,-1473.98,0.0003726,9]
[392439050,1761475864269,-500.0,0.0003726,9]
[392439051,1761475864280,-500.0,0.0003726,9]
[392439052,1761475864290,-500.0,0.0003726,9]
[392439053,1761475864299,-1605.5,0.0003726,2]
[392439054,1761475864309,-500.0,0.0003726,9]
[392439055,1761475864319,-500.0,0.0003726,9]
[392439056,1761475864329,-500.0,0.0003726,9]
[392439057,1761475864338,-500.0,0.0003726,9]
[392439058,1761475864348,-500.0,0.0003726,9]
[392439059,1761475864357,-500.0,0.0003726,9]
[392439060,1761475864367,-910.15,0.0003726,9]
[392439061,1761475864376,-500.0,0.0003726,9]
[392439062,1761475864386,-500.0,0.0003726,9]
[392439063,1761475864395,-500.0,0.0003726,9]
[392439064,1761475864405,-500.0,0.0003726,9]
[392439065,1761475864414,-500.0,0.0003726,9]
[392439066,1761475864423,-500.0,0.0003726,9]
[392439067,1761475864432,-633.37726133,0.0003726,9]
[392439068,1761475864441,-500.0,0.0003726,9]
[392439069,1761475864451,-514.41768314,0.0003726,9]
[392439070,1761475864460,-500.0,0.0003726,9]
[392439071,1761475864469,-500.0,0.0003726,9]
[392439072,1761475864478,-500.0,0.0003726,9]
[392439073,1761475864488,-500.0,0.0003726,9]
[392439074,1761475864497,-631.79,0.00037285,30]
[392439075,1761475864507,-769.64,0.00037316,2]
[392439076,1761475864601,-4310.0,0.00037319,7]
[392439077,1761475864620,-187.01,0.00037492,2]
[392439078,1761475864630,-1511.9,0.00037534,2]
[392439079,1761475864639,-500.0,0.00037534,9]
[392439080,1761475864649,-500.0,0.00037534,2]
[392439081,1761475864658,-500.0,0.00037534,9]
[392439082,1761475864668,-500.0,0.00037534,9]
[392439083,1761475864677,-359.26445452,0.00037534,9]
[392439084,1761475864687,-500.0,0.00037534,9]
[392439085,1761475864695,-500.0,0.00037534,9]
[392439086,1761475864705,-321.46965157,0.00037534,9]
[392439087,1761475864714,-500.0,0.00037534,9]
[392439088,1761475864723,-500.0,0.00037534,9]
[392439089,1761475864733,-500.0,0.00037534,9]
[392439090,1761475864742,-356.75194001,0.00037534,9]
[392439091,1761475864751,-500.0,0.00037534,9]
[392439092,1761475864760,-292.77544322,0.00037534,9]
[392439093,1761475864770,-1473.98,0.00037534,9]
[392439094,1761475864780,-500.0,0.00037534,9]
[392439095,1761475864789,-500.0,0.00037534,9]
[392439096,1761475864798,-500.0,0.00037534,9]
[392439097,1761475864808,-1605.5,0.00037534,2]
[392439098,1761475864817,-483.084696,0.00037534,9]
[392439099,1761475864827,-500.0,0.00037534,9]
[392439100,1761475864836,-500.0,0.00037534,9]
[392439101,1761475864846,-500.0,0.00037534,9]
[392439102,1761475864855,-500.0,0.00037534,9]
[392439103,1761475864865,-500.0,0.00037534,9]
[392439104,1761475864874,-910.15,0.00037534,9]
[392439105,1761475864884,-500.0,0.00037534,9]
[392439106,1761475864893,-500.0,0.00037534,9]
[392439107,1761475864903,-500.0,0.00037534,9]
[392439108,1761475864916,-500.0,0.00037534,9]
[392439109,1761475864925,-500.0,0.00037534,9]
[392439110,1761475864934,-500.0,0.00037534,9]
[392439111,1761475864943,-305.24338746,0.00037534,9]
[392439112,1761475864955,-500.0,0.00037534,9]
[392439113,1761475864963,-500.0,0.00037534,9]
[392439114,1761475864972,-500.0,0.00037534,9]
[392439115,1761475864983,-500.0,0.00037534,9]
[392439116,1761475864993,-170.19401641,0.00037556,60]
[392439117,1761475865002,-152.36,0.00037556,60]
[392439118,1761475865012,-152.35,0.00037556,60]
[392439119,1761475865021,-1000.0,0.00037632,7]
[392439120,1761475865032,-1000.0,0.00037632,8]
[392439121,1761475865043,-1000.0,0.00037632,14]
[392439122,1761475865054,-152.35,0.00037656,60]
[392439123,1761475865064,-228.9804123,0.00037688,2]
[392439124,1761475865075,-7322.34,0.000377,14]
[392439125,1761475865084,-5122.5966771,0.00037728,2]
[392439126,1761475865094,-1113.16565572,0.00037753,120]
[392439127,1761475865106,-152.38,0.00037756,60]
[392439128,1761475865115,-152.0,0.00037761,4]
[392439129,1761475865124,-590.0,0.00037764,2]
[392439130,1761475865134,-700.0,0.0003777,15]
[392439131,1761475865142,-4710.98,0.000378,2]
[392439132,1761475865152,-516.67261533,0.00037808,2]
[392439133,1761475865161,-1511.9,0.00037808,2]
[392439134,1761475865169,-500.0,0.00037808,9]
[392439135,1761475865178,-500.0,0.00037808,2]
[392439136,1761475865187,-500.0,0.00037808,9]
[392439137,1761475865196,-500.0,0.00037808,9]
[392439138,1761475865205,-500.0,0.00037808,9]
[392439139,1761475865214,-500.0,0.00037808,9]
[392439140,1761475865222,-212.80667411,0.00037808,9]
[392439141,1761475865231,-500.0,0.00037808,9]
[392439142,1761475865240,-500.0,0.00037808,9]
[392439143,1761475865249,-500.0,0.00037808,9]
[392439144,1761475865259,-1473.98,0.00037808,9]
[392439145,1761475865268,-500.0,0.00037808,9]
[392439146,1761475865277,-620.53937051,0.00037808,9]
[392439147,1761475865286,-226.07612972,0.00037808,9]
[392439148,1761475865296,-1605.5,0.00037808,2]
[392439149,1761475865306,-166.3353833,0.00037808,9]
[392439150,1761475865316,-500.0,0.00037808,9]
[392439151,1761475865326,-500.0,0.00037808,9]
[392439152,1761475865336,-500.0,0.00037808,9]
[392439153,1761475865345,-500.0,0.00037808,9]
[392439154,1761475865354,-910.15,0.00037808,9]
[392439155,1761475865363,-500.0,0.00037808,9]
[392439156,1761475865372,-500.0,0.00037808,9]
[392439157,1761475865382,-500.0,0.00037808,9]
[392439158,1761475865392,-500.0,0.00037808,9]
[392439159,1761475865401,-500.0,0.00037808,9]
[392439160,1761475865411,-500.0,0.00037808,9]
[392439161,1761475865420,-500.0,0.00037808,9]
[392439162,1761475865430,-500.0,0.00037808,9]
[392439163,1761475865440,-500.0,0.00037808,9]
[392439164,1761475865449,-198.90355512,0.0003788,2]
[392439165,1761475865458,-166.66,0.00037889,2]
[392439166,1761475865468,-2500.0,0.00037976,7]
[392439167,1761475865477,-804.70728964,0.00037977,2]
[392439168,1761475865487,-2500.0,0.00037985,7]
[392439169,1761475865496,-2500.0,0.00037994,7]
[392439170,1761475865505,-343.29489351,0.00038,7]
[392439171,1761475865514,-200.0,0.00038,120]
[392439172,1761475865524,-185.78,0.00038,30]
[392439173,1761475865533,-2500.0,0.00038003,7]
[392439174,1761475865543,-2500.0,0.00038012,7]
[392439175,1761475865552,-2500.0,0.0003802,7]
[392439176,1761475865560,-2500.0,0.00038029,7]
[392439177,1761475865569,-2500.0,0.00038029,7]
[392439178,1761475865578,-2500.0,0.00038038,7]
[392439179,1761475865587,-2500.0,0.00038038,7]
[392439180,1761475865596,-2500.0,0.00038038,7]
[392439181,1761475865605,-2500.0,0.00038047,7]
[392439182,1761475865614,-2500.0,0.00038047,7]
[392439183,1761475865623,-2500.0,0.00038047,7]
[392439184,1761475865632,-2500.0,0.00038056,7]
[392439185,1761475865641,-2500.0,0.00038056,7]
[392439186,1761475865650,-2500.0,0.00038056,7]
[392439187,1761475865659,-2500.0,0.00038064,7]
[392439188,1761475865668,-2500.0,0.00038064,7]
[392439189,1761475865677,-2500.0,0.00038064,7]
[392439190,1761475865686,-2500.0,0.00038064,7]
[392439191,1761475865695,-2500.0,0.00038064,7]
[392439192,1761475865704,-2500.0,0.00038073,7]
[392439193,1761475865713,-2500.0,0.00038073,7]
[392439194,1761475865722,-2500.0,0.00038073,7]
[392439195,1761475865731,-2500.0,0.00038073,7]
[392439196,1761475865740,-2500.0,0.00038073,7]
[392439197,1761475865751,-1511.9,0.00038082,2]
[392439198,1761475865761,-2500.0,0.00038082,7]
[392439199,1761475865771,-2500.0,0.00038082,7]
[392439200,1761475865780,-2500.0,0.00038082,7]
[392439201,1761475865789,-2500.0,0.00038082,7]
[392439202,1761475865798,-415.79645168,0.00038082,9]
[392439203,1761475865807,-500.0,0.00038082,2]
[392439204,1761475865816,-500.0,0.00038082,9]
[392439205,1761475865825,-500.0,0.00038082,9]
[392439206,1761475865835,-500.0,0.00038082,9]
[392439207,1761475865844,-2500.0,0.00038082,7]
[392439208,1761475865855,-619.16416228,0.00038082,9]
[392439209,1761475865864,-500.0,0.00038082,9]
[392439210,1761475865874,-162.05326296,0.00038082,9]
[392439211,1761475865884,-500.0,0.00038082,9]
[392439212,1761475865893,-1473.98,0.00038082,9]
[392439213,1761475865903,-289.09815439,0.00038082,9]
[392439214,1761475865917,-1605.5,0.00038082,2]
[392439215,1761475865927,-500.0,0.00038082,9]
[392439216,1761475865938,-500.0,0.00038082,9]
[392439217,1761475865949,-500.0,0.00038082,9]
[392439218,1761475865959,-425.5669436,0.00038082,9]
[392439219,1761475865970,-910.15,0.00038082,9]
[392439220,1761475865980,-500.0,0.00038082,9]
[392439221,1761475865990,-500.0,0.00038082,9]
[392439222,1761475865999,-500.0,0.00038082,9]
[392439223,1761475866008,-500.0,0.00038082,9]
[392439224,1761475866020,-500.0,0.00038082,9]
[392439225,1761475866030,-500.0,0.00038082,9]
[392439226,1761475866039,-500.0,0.00038082,9]
[392439227,1761475866048,-500.0,0.00038082,9]
[392439228,1761475866057,-500.0,0.00038082,9]
[392439229,1761475866067,-265.34085384,0.000381,33]
[392439230,1761475866076,-208.02853364,0.000381,33]
[392439231,1761475866085,-212.64199912,0.000381,33]
[392439232,1761475866095,-753.74,0.000381,14]
[392439233,1761475866105,-5800.0,0.00038259,2]
[392439234,1761475866114,-4903.8133314,0.00038274,2]
[392439235,1761475866125,-5666.23451235,0.000383,30]
[392439236,1761475866135,-241.23,0.000383,7]
[392439237,1761475866144,-2274.91,0.000383,7]
[392439238,1761475866156,-1511.9,0.00038356,2]
[392439239,1761475866165,-1000.0,0.00038356,9]
[392439240,1761475866174,-1000.0,0.00038356,9]
[392439241,1761475866182,-1000.0,0.00038356,9]
[392439242,1761475866191,-1000.0,0.00038356,9]
[392439243,1761475866200,-1000.0,0.00038356,9]
[392439244,1761475866209,-1000.0,0.00038356,9]
[392439245,1761475866218,-1000.0,0.00038356,9]
[392439246,1761475866226,-707.9792536,0.00038356,9]
[392439247,1761475866235,-500.0,0.00038356,2]
[392439248,1761475866244,-153.19992776,0.00038356,9]
[392439249,1761475866253,-500.0,0.00038356,9]
[392439250,1761475866262,-500.0,0.00038356,9]
[392439251,1761475866274,-500.0,0.00038356,9]
[392439252,1761475866284,-500.0,0.00038356,9]
[392439253,1761475866293,-1473.98,0.00038356,9]
[392439254,1761475866302,-1605.5,0.00038356,2]
[392439255,1761475866311,-319.45852775,0.00038356,9]
[392439256,1761475866320,-500.0,0.00038356,9]
[392439257,1761475866329,-500.0,0.00038356,9]
[392439258,1761475866339,-910.15,0.00038356,9]
[392439259,1761475866348,-340.20818242,0.00038356,9]
[392439260,1761475866358,-500.0,0.00038356,9]
[392439261,1761475866367,-500.0,0.00038356,9]
[392439262,1761475866376,-500.0,0.00038356,9]
[392439263,1761475866385,-500.0,0.00038356,9]
[392439264,1761475866394,-500.0,0.00038356,9]
[392439265,1761475866404,-500.0,0.00038356,9]
[392439266,1761475866413,-500.0,0.00038356,9]
[392439267,1761475866422,-500.0,0.00038356,9]
[392439268,1761475866431,-500.0,0.00038374,120]
[392439269,1761475866439,-500.0,0.0003846,120]
[392439270,1761475866448,-1888.20063445,0.00038462,14]
[392439271,1761475866457,-696.9,0.00038506,2]
[392439272,1761475866466,-696.9,0.00038506,2]
[392439273,1761475866563,-696.9,0.00038506,2]
[392439274,1761475866572,-695.22,0.00038506,2]
[392439275,1761475866581,-957.41,0.00038506,2]
[392439276,1761475866590,-475.88,0.00038506,2]
[392439277,1761475866599,-475.88,0.00038506,2]
[392439278,1761475866608,-475.01,0.00038506,2]
[392439279,1761475866617,-769.64,0.00038574,2]
[392439280,1761475866627,-1511.9,0.0003863,2]
[392439281,1761475866637,-500.0,0.0003863,2]
[392439282,1761475866647,-500.0,0.0003863,9]
[392439283,1761475866656,-500.0,0.0003863,9]
[392439284,1761475866666,-275.55845111,0.0003863,9]
[392439285,1761475866676,-500.0,0.0003863,9]
[392439286,1761475866686,-1473.98,0.0003863,9]
[392439287,1761475866696,-1605.5,0.0003863,2]
[392439288,1761475866706,-500.0,0.0003863,9]
[392439289,1761475866716,-500.0,0.0003863,9]
[392439290,1761475866726,-910.15,0.0003863,9]
[392439291,1761475866736,-500.0,0.0003863,9]
[392439292,1761475866746,-500.0,0.0003863,9]
[392439293,1761475866755,-500.0,0.0003863,9]
[392439294,1761475866764,-188.62940904,0.0003863,9]
[392439295,1761475866773,-500.0,0.0003863,9]
[392439296,1761475866783,-644.77963002,0.0003863,9]
[392439297,1761475866792,-500.0,0.0003863,9]
[392439298,1761475866802,-500.0,0.0003863,9]
[392439299,1761475866811,-507.15181486,0.00038644,2]
[392439300,1761475866820,-539.93,0.000387,7]
[392439301,1761475866829,-7322.34,0.000388,14]
[392439302,1761475866838,-4310.0,0.00038807,2]
[392439303,1761475866847,-1291.1756,0.00038888,30]
[392439304,1761475866856,-295.13,0.000389,120]
[392439305,1761475866865,-1511.9,0.00038904,2]
[392439306,1761475866875,-500.0,0.00038904,2]
[392439307,1761475866884,-500.0,0.00038904,9]
[392439308,1761475866894,-500.0,0.00038904,9]
[392439309,1761475866909,-500.0,0.00038904,9]
[392439310,1761475866918,-1473.98,0.00038904,9]
[392439311,1761475866927,-1605.5,0.00038904,2]
[392439312,1761475866938,-500.0,0.00038904,9]
[392439313,1761475866949,-500.0,0.00038904,9]
[392439314,1761475866960,-910.15,0.00038904,9]
[392439315,1761475866970,-500.0,0.00038904,9]
[392439316,1761475866984,-500.0,0.00038904,9]
[392439317,1761475866993,-500.0,0.00038904,9]
[392439318,1761475867003,-500.0,0.00038904,9]
[392439319,1761475867012,-420.75931987,0.00038904,9]
[392439320,1761475867021,-500.0,0.00038904,9]
[392439321,1761475867031,-175.54,0.00038925,2]
[392439322,1761475867041,-640.755,0.00038978,2]
[392439323,1761475867050,-819.0,0.00038978,2]
[392439324,1761475867060,-571.0,0.00038978,2]
[392439325,1761475867070,-975.543,0.00038978,2]
[392439326,1761475867079,-606.0,0.00038978,2]
[392439327,1761475867089,-1592.0,0.00038978,2]
[392439328,1761475867099,-582.957,0.00038978,2]
[392439329,1761475867108,-6539.0,0.00038978,2]
[392439330,1761475867117,-1135.932,0.00038978,2]
[392439331,1761475867128,-3487.0,0.00038978,2]
[392439332,1761475867137,-178.31,0.00038978,2]
[392439333,1761475867147,-771.9416096,0.00038993,2]
[392439334,1761475867157,-502.18204552,0.00039,5]
[392439335,1761475867167,-1243.84691742,0.00039,120]
[392439336,1761475867177,-154208.00286355,0.00039,2]
[392439337,1761475867187,-958.0,0.00039,7]
[392439338,1761475867198,-4710.98,0.00039,30]
[392439339,1761475867207,-205.18,0.00039,120]
[392439340,1761475867217,-571.46,0.00039,120]
[392439341,1761475867228,-618.47,0.00039,120]
[392439342,1761475867239,-100142.00564877,0.00039,2]
[392439343,1761475867250,-1072.71,0.00039,120]
[392439344,1761475867260,-10000.0,0.00039,120]
[392439345,1761475867270,-8027.46,0.00039,120]
[392439346,1761475867279,-1139.37,0.00039,120]
[392439347,1761475867290,-164.77,0.00039,120]
[392439348,1761475867300,-484.03,0.00039,120]
[392439349,1761475867309,-1916.91,0.00039,120]
[392439350,1761475867319,-18432.675735,0.00039048,2]
[392439351,1761475867328,-13187.4903794,0.00039085,2]
[392439352,1761475867336,-4310.0,0.00039144,120]
[392439353,1761475867346,-1512.09691735,0.00039178,2]
[392439354,1761475867355,-500.0,0.00039178,2]
[392439355,1761475867365,-500.0,0.00039178,9]
[392439356,1761475867375,-500.0,0.00039178,9]
[392439357,1761475867386,-1473.98,0.00039178,9]
[392439358,1761475867397,-1605.5,0.00039178,2]
[392439359,1761475867407,-500.0,0.00039178,9]
[392439360,1761475867417,-500.0,0.00039178,9]
[392439361,1761475867427,-910.15,0.00039178,9]
[392439362,1761475867438,-500.0,0.00039178,9]
[392439363,1761475867448,-500.0,0.00039178,9]
[392439364,1761475867458,-500.0,0.00039178,9]
[392439365,1761475867471,-500.0,0.00039178,9]
[392439366,1761475867481,-500.0,0.00039178,9]
[392439367,1761475867491,-241.23,0.000392,7]
[392439368,1761475867501,-2274.91,0.000392,7]
[392439369,1761475867511,-241.23,0.000393,7]
[392439370,1761475867521,-2274.91,0.000393,7]
[392439371,1761475867531,-168.61,0.00039327,2]
[392439372,1761475867540,-1034.36,0.00039327,2]
[392439373,1761475867550,-168.61,0.00039327,2]
[392439374,1761475867559,-414.6,0.00039327,2]
[392439375,1761475867568,-1095.06,0.00039327,2]
[392439376,1761475867578,-168.61,0.00039327,2]
[392439377,1761475867587,-414.6,0.00039327,2]
[392439378,1761475867596,-163.61,0.00039389,120]
[392439379,1761475867606,-185.78,0.000394,30]
[392439380,1761475867615,-297.36,0.00039403,120]
[392439381,1761475867624,-500.0,0.00039452,2]
[392439382,1761475867633,-648.86589813,0.00039452,9]
[392439383,1761475867644,-500.0,0.00039452,9]
[392439384,1761475867653,-1473.98,0.00039452,9]
[392439385,1761475867662,-1605.5,0.00039452,2]
[392439386,1761475867671,-500.0,0.00039452,9]
[392439387,1761475867680,-500.0,0.00039452,9]
[392439388,1761475867690,-910.15,0.00039452,9]
[392439389,1761475867698,-500.0,0.00039452,9]
[392439390,1761475867708,-500.0,0.00039452,9]
[392439391,1761475867717,-452.25,0.00039464,2]
[392439392,1761475867726,-717.29,0.00039464,2]
[392439393,1761475867736,-463.03,0.00039484,2]
[392439394,1761475867746,-9999.99,0.00039484,2]
[392439395,1761475867756,-999.99,0.00039484,2]
[392439396,1761475867765,-2080.42,0.00039484,2]
[392439397,1761475867774,-150.99,0.00039484,2]
[392439398,1761475867783,-993.21,0.00039484,2]
[392439399,1761475867792,-5741.68,0.00039484,2]
[392439400,1761475867802,-753.74,0.000395,14]
[392439401,1761475867812,-241.23,0.000395,7]
[392439402,1761475867821,-2274.91,0.000395,7]
[392439403,1761475867831,-200.36,0.00039654,2]
[392439404,1761475867840,-10000.0,0.000397,120]
[392439405,1761475867849,-500.0,0.00039726,2]
[392439406,1761475867858,-1473.98,0.00039726,9]
[392439407,1761475867868,-1605.5,0.00039726,2]
[392439408,1761475867878,-323.76128182,0.00039726,9]
[392439409,1761475867888,-282.14807113,0.00039726,9]
[392439410,1761475867897,-910.15,0.00039726,9]
[392439411,1761475867910,-500.0,0.00039726,9]
[392439412,1761475867919,-365.73899679,0.00039726,15]
[392439413,1761475867928,-500.0,0.00039788,120]
[392439414,1761475867938,-1000.0,0.00039805,21]
[392439415,1761475867948,-1000.0,0.00039805,2]
[392439416,1761475867959,-1000.0,0.00039854,21]
[392439417,1761475867969,-204.75927942,0.0003989,2]
[392439418,1761475867980,-7322.34,0.000399,14]
[392439419,1761475867990,-1000.0,0.00039902,21]
[392439420,1761475867999,-692.75899582,0.00039912,120]
[392439421,1761475868008,-1000.0,0.00039951,21]
[392439422,1761475868017,-509.699299,0.0003996,120]
[392439423,1761475868027,-503.0,0.00039962,120]
[392439424,1761475868036,-172.2434549,0.00039977,2]
[392439425,1761475868045,-384.62296379,0.0004,2]
[392439426,1761475868055,-215.5632503,0.0004,2]
[392439427,1761475868065,-574.22127154,0.0004,120]
[392439428,1761475868074,-200.0,0.0004,120]
[392439429,1761475868084,-500.0,0.0004,120]
[392439430,1761475868093,-159.75591569,0.0004,30]
[392439431,1761475868102,-234.84154684,0.0004,2]
[392439432,1761475868111,-150.0,0.0004,45]
[392439433,1761475868120,-709.30022334,0.0004,60]
[392439434,1761475868130,-9571.25230985,0.0004,120]
[392439435,1761475868140,-768.49173163,0.0004,30]
[392439436,1761475868149,-168.94573792,0.0004,30]
[392439437,1761475868159,-300.0,0.0004,120]
[392439438,1761475868169,-467.0,0.0004,120]
[392439439,1761475868178,-205.0,0.0004,120]
[392439440,1761475868188,-2139.95074448,0.0004,2]
[392439441,1761475868198,-33918.77172971,0.0004,2]
[392439442,1761475868207,-326.31420364,0.0004,2]
[392439443,1761475868217,-1473.98,0.0004,9]
[392439444,1761475868226,-221.04,0.0004,120]
[392439445,1761475868235,-1605.5,0.0004,2]
[392439446,1761475868244,-910.15,0.0004,9]
[392439447,1761475868254,-500.0,0.0004,9]
[392439448,1761475868264,-250.0,0.00040013,120]
[392439449,1761475868273,-243.88600252,0.00040013,120]
[392439450,1761475868283,-4112.8858887,0.00040044,2]
[392439451,1761475868292,-2942.5268403,0.00040082,2]
[392439452,1761475868301,-170.69,0.00040149,2]
[392439453,1761475868311,-414.6,0.00040149,2]
[392439454,1761475868411,-414.6,0.00040149,2]
[392439455,1761475868420,-381.33,0.00040149,2]
[392439456,1761475868430,-414.6,0.00040149,2]
[392439457,1761475868439,-412.88,0.00040149,2]
[392439458,1761475868450,-230.83,0.00040149,2]
[392439459,1761475868460,-176.46,0.00040149,2]
[392439460,1761475868469,-176.46,0.00040149,2]
[392439461,1761475868478,-176.02,0.00040149,2]
[392439462,1761475868488,-4710.98,0.000402,30]
[392439463,1761475868498,-507.15181486,0.00040208,2]
[392439464,1761475868508,-1473.98,0.00040273,9]
[392439465,1761475868518,-1605.5,0.00040273,2]
[392439466,1761475868529,-910.15,0.00040273,9]
[392439467,1761475868539,-500.0,0.00040273,9]
[392439468,1761475868548,-215.0738,0.00040292,30]
[392439469,1761475868558,-223.0315306,0.00040292,40]
[392439470,1761475868568,-231.28369723,0.00040292,41]
[392439471,1761475868578,-239.84119403,0.00040292,42]
[392439472,1761475868588,-248.71531821,0.00040292,43]
[392439473,1761475868597,-257.91778498,0.00040292,44]
[392439474,1761475868607,-267.46074303,0.00040292,45]
[392439475,1761475868617,-241.23,0.000403,7]
[392439476,1761475868627,-2274.91,0.000403,7]
[392439477,1761475868636,-207.4,0.00040313,42]
[392439478,1761475868646,-200.0,0.00040314,30]
[392439479,1761475868655,-10000.0,0.000404,120]
[392439480,1761475868665,-1473.98,0.00040547,9]
[392439481,1761475868675,-1605.5,0.00040547,2]
[392439482,1761475868685,-910.15,0.00040547,9]
[392439483,1761475868696,-500.0,0.00040547,9]
[392439484,1761475868705,-1000.09496153,0.00040649,30]
[392439485,1761475868715,-1097.26706,0.00040649,30]
[392439486,1761475868725,-175.54,0.00040695,2]
[392439487,1761475868734,-152.0,0.00040821,5]
[392439488,1761475868743,-1473.98,0.00040821,9]
[392439489,1761475868753,-1605.5,0.00040821,2]
[392439490,1761475868763,-910.15,0.00040821,9]
[392439491,1761475868772,-500.0,0.00040821,9]
[392439492,1761475868782,-5000.0,0.000409,120]
[392439493,1761475868791,-504.0,0.00040962,120]
[392439494,1761475868800,-350.61,0.00041,120]
[392439495,1761475868810,-2023.61065367,0.00041,120]
[392439496,1761475868819,-221.31903384,0.00041,120]
[392439497,1761475868828,-185.78,0.00041,30]
[392439498,1761475868838,-753.74,0.00041,14]
[392439499,1761475868847,-1235.1,0.00041041,120]
[392439500,1761475868857,-500.0,0.00041095,120]
[392439501,1761475868867,-500.0,0.00041095,120]
[392439502,1761475868876,-500.0,0.00041095,120]
[392439503,1761475868886,-500.0,0.00041095,120]
[392439504,1761475868895,-500.0,0.00041095,120]
[392439505,1761475868904,-500.0,0.00041095,120]
[392439506,1761475868917,-500.0,0.00041095,120]
[392439507,1761475868927,-500.0,0.00041095,120]
[392439508,1761475868936,-500.0,0.00041095,120]
[392439509,1761475868946,-379.07803397,0.00041095,120]
[392439510,1761475868956,-1473.98,0.00041095,9]
[392439511,1761475868965,-1605.5,0.00041095,2]
[392439512,1761475868974,-910.15,0.00041095,9]
[392439513,1761475868985,-214.18211245,0.00041095,9]
[392439514,1761475868995,-14817.73,0.00041096,120]
[392439515,1761475869006,-30000.0,0.00041096,120]
[392439516,1761475869015,-7322.34,0.000411,14]
[392439517,1761475869025,-10000.0,0.000411,120]
[392439518,1761475869035,-156.47806448,0.000411,120]